fUSD/lending_fUSD_20250610
["ID","MTS","AMOUNT","RATE_DAILY","PERIOD"]
[365189446,1749525089315,-1641.81,0.00017753,2]
[365189447,1749525089324,-2238.41,0.00017753,2]
[365189448,1749525089334,-490.0,0.00017753,2]
[365189449,1749525089344,-536.08410606,0.00017753,2]
[365189450,1749525089353,-659.57,0.00017753,2]
[365189451,1749525089363,-484.15681898,0.00017753,2]
[365189452,1749525089372,-490.0,0.00017753,2]
[365189453,1749525089380,-1065.02,0.00017753,2]
[365189454,1749525089389,-1338.38,0.00017753,2]
[365189455,1749525089398,-490.0,0.00017753,2]
[365189456,1749525089406,-490.0,0.00017753,2]
[365189457,1749525089415,-490.0,0.00017753,2]
[365189458,1749525089424,-490.0,0.00017753,2]
[365189459,1749525089433,-490.0,0.00017753,2]
[365189460,1749525089442,-897.68,0.00017753,2]
[365189461,1749525089451,-490.0,0.00017753,2]
[365189462,1749525089459,-490.0,0.00017753,2]
[365189463,1749525089468,-517.29,0.00017753,2]
[365189464,1749525089476,-490.0,0.00017753,2]
[365189465,1749525089485,-639.59,0.00017753,2]
[365189466,1749525089494,-490.0,0.00017753,2]
[365189467,1749525089503,-490.0,0.00017753,2]
[365189468,1749525089512,-490.0,0.00017753,2]
[365189469,1749525089521,-490.0,0.00017753,2]
[365189470,1749525089532,-490.0,0.00017753,2]
[365189471,1749525089541,-1634.79,0.00017753,2]
[365189472,1749525089551,-795.78,0.00017753,2]
[365189473,1749525089561,-490.0,0.00017753,2]
[365189474,1749525089570,-538.24423811,0.00017753,2]
[365189475,1749525089580,-490.0,0.00017753,2]
[365189476,1749525089589,-499.37,0.00017753,2]
[365189477,1749525089603,-1983.09,0.00017753,2]
[365189478,1749525089613,-490.0,0.00017753,2]
[365189479,1749525089623,-490.0,0.00017753,2]
[365189480,1749525089634,-429.18935838,0.00017753,2]
[365189481,1749525089644,-1184.87,0.00017753,2]
[365189482,1749525089654,-42056.12,0.00017753,2]
[365189483,1749525089663,-490.0,0.00017753,2]
[365189484,1749525089672,-490.0,0.00017753,2]
[365189485,1749525089683,-490.0,0.00017753,2]
[365189486,1749525089693,-490.0,0.00017753,2]
[365189487,1749525089703,-490.0,0.00017753,2]
[365189488,1749525089711,-490.0,0.00017753,2]
[365189489,1749525089720,-605.98,0.00017753,2]
[365189490,1749525089729,-491.03,0.00017753,2]
[365189491,1749525089737,-611.73,0.00017753,2]
[365189492,1749525089746,-497.21,0.00017753,2]
[365189493,1749525089755,-730.26,0.00017753,2]
[365189494,1749525089765,-1437.03,0.00017753,2]
[365189495,1749525089775,-597.29,0.00017753,2]
[365189496,1749525089784,-4445.982985,0.00017753,2]
[365189497,1749525089794,-490.0,0.00017753,2]
[365189498,1749525089803,-835.66,0.00017753,2]
[365189499,1749525089812,-379.0,0.00017766,4]
[365189500,1749525089822,-1500.0,0.00017768,2]
[365189501,1749525089832,-1500.0,0.00017768,2]
[365189502,1749525089842,-1500.0,0.00017768,2]
[365189503,1749525089852,-1500.0,0.00017768,2]
[365189504,1749525089860,-1500.0,0.00017768,2]
[365189505,1749525089869,-250.0,0.00017777,2]
[365189506,1749525089879,-300.0,0.00017777,2]
[365189507,1749525089888,-250.0,0.00017777,2]
[365189508,1749525089899,-2500.0,0.00017793,2]
[365189509,1749525089908,-2500.0,0.00017793,2]
[365189510,1749525089916,-156.587,0.00017797,2]
[365189511,1749525089924,-1000.0,0.00017799,2]
[365189512,1749525089932,-1802.17487069,0.000178,3]
[365189513,1749525089941,-500.0,0.00017808,2]
[365189514,1749525089950,-500.0,0.00017808,2]
[365189515,1749525089959,-500.0,0.00017808,2]
[365189516,1749525089967,-498.07698705,0.00017808,2]
[365189517,1749525089976,-353.13463757,0.00017808,2]
[365189518,1749525089986,-300.0,0.00017808,2]
[365189519,1749525089996,-175.895025,0.00017808,2]
[365189520,1749525090006,-420.0,0.00017835,2]
[365189521,1749525090015,-295.0,0.0001785,2]
[365189522,1749525090024,-501.64674611,0.00017868,2]
[365189523,1749525090034,-282.97415974,0.000179,2]
[365189524,1749525090044,-2500.0,0.000179,6]
[365189525,1749525090054,-5554.04029648,0.00017911,2]
[365189526,1749525090065,-6976.82463692,0.00017913,2]
[365189527,1749525090075,-730.31,0.00017916,2]
[365189528,1749525090086,-500.0,0.00017916,2]
[365189529,1749525090096,-490.0,0.00017917,2]
[365189530,1749525090105,-490.0,0.00017917,2]
[365189531,1749525090114,-582.24593918,0.00017917,2]
[365189532,1749525090123,-490.0,0.00017917,2]
[365189533,1749525090134,-490.0,0.00017917,2]
[365189534,1749525090143,-490.0,0.00017917,2]
[365189535,1749525090154,-503.0,0.00017917,2]
[365189536,1749525090164,-706.89,0.00017917,2]
[365189537,1749525090173,-490.0,0.00017917,2]
[365189538,1749525090182,-665.87,0.00017917,2]
[365189539,1749525090191,-490.0,0.00017917,2]
[365189540,1749525090200,-504.72,0.00017917,2]
[365189541,1749525090211,-579.14,0.00017917,2]
[365189542,1749525090226,-490.0,0.00017917,2]
[365189543,1749525090235,-490.0,0.00017917,2]
[365189544,1749525090244,-490.0,0.00017917,2]
[365189545,1749525090254,-665.32,0.00017917,2]
[365189546,1749525090263,-198.36050365,0.00017917,2]
[365189547,1749525090273,-490.0,0.00017917,2]
[365189548,1749525090282,-490.0,0.00017917,2]
[365189549,1749525090292,-490.0,0.00017917,2]
[365189550,1749525090301,-490.0,0.00017917,2]
[365189551,1749525090314,-490.0,0.00017917,2]
[365189552,1749525090324,-490.0,0.00017917,2]
[365189553,1749525090334,-644.96,0.00017917,2]
[365189554,1749525090343,-614.43,0.00017917,2]
[365189555,1749525090353,-346.47647266,0.00017917,2]
[365189556,1749525090362,-490.0,0.00017917,2]
[365189557,1749525090372,-490.0,0.00017917,2]
[365189558,1749525090382,-862.63,0.00017917,2]
[365189559,1749525090392,-2092.76,0.00017917,2]
[365189560,1749525090401,-490.0,0.00017917,2]
[365189561,1749525090410,-490.0,0.00017917,2]
[365189562,1749525090421,-490.0,0.00017917,2]
[365189563,1749525090430,-490.0,0.00017917,2]
[365189564,1749525090439,-597.22,0.00017917,2]
[365189565,1749525090449,-490.0,0.00017917,2]
[365189566,1749525090459,-365.70143771,0.00017917,2]
[365189567,1749525090468,-490.0,0.00017917,2]
[365189568,1749525090478,-496.63,0.00017917,2]
[365189569,1749525090487,-490.0,0.00017917,2]
[365189570,1749525090498,-460.0,0.00017917,2]
[365189571,1749525090508,-490.0,0.00017917,2]
[365189572,1749525090518,-490.0,0.00017917,2]
[365189573,1749525090527,-490.0,0.00017917,2]
[365189574,1749525090537,-490.0,0.00017917,2]
[365189575,1749525090547,-490.0,0.00017917,2]
[365189576,1749525090557,-490.0,0.00017917,2]
[365189577,1749525090566,-490.0,0.00017917,2]
[365189578,1749525090577,-565.28,0.00017917,2]
[365189579,1749525090587,-490.0,0.00017917,2]
[365189580,1749525090599,-490.0,0.00017917,2]
[365189581,1749525090609,-490.0,0.00017917,2]
[365189582,1749525090619,-193.54980345,0.00017917,2]
[365189583,1749525090628,-490.0,0.00017917,2]
[365189584,1749525090639,-383.02025092,0.00017917,2]
[365189585,1749525090650,-537.96,0.00017917,2]
[365189586,1749525090659,-915.11,0.00017917,2]
[365189587,1749525090670,-490.0,0.00017917,2]
[365189588,1749525090679,-490.0,0.00017917,2]
[365189589,1749525090689,-490.0,0.00017917,2]
[365189590,1749525090699,-556.18,0.00017917,2]
[365189591,1749525090709,-490.0,0.00017917,2]
[365189592,1749525090719,-490.0,0.00017917,2]
[365189593,1749525090729,-490.0,0.00017917,2]
[365189594,1749525090738,-535.23,0.00017917,2]
[365189595,1749525090748,-490.0,0.00017917,2]
[365189596,1749525090758,-490.0,0.00017917,2]
[365189597,1749525090767,-2294.03,0.00017917,2]
[365189598,1749525090777,-722.61,0.00017917,2]
[365189599,1749525090787,-265.71973937,0.00017917,2]
[365189600,1749525090797,-757.61,0.00017917,2]
[365189601,1749525090807,-460.42577203,0.00017917,2]
[365189602,1749525090816,-490.0,0.00017917,2]
[365189603,1749525090826,-235.67527008,0.00017917,2]
[365189604,1749525090835,-1761.99,0.00017917,2]
[365189605,1749525090845,-498.01,0.00017917,2]
[365189606,1749525090854,-490.0,0.00017917,2]
[365189607,1749525090863,-626.78,0.00017917,2]
[365189608,1749525090873,-2487.15,0.00017917,2]
[365189609,1749525090883,-229.65858297,0.00017917,2]
[365189610,1749525090892,-490.0,0.00017917,2]
[365189611,1749525090902,-490.0,0.00017917,2]
[365189612,1749525090912,-606.33148344,0.00017917,2]
[365189613,1749525090921,-304.14949391,0.00017917,2]
[365189614,1749525090931,-996.35,0.00017917,2]
[365189615,1749525090940,-591.43,0.00017917,2]
[365189616,1749525090950,-490.0,0.00017917,2]
[365189617,1749525090959,-553.91,0.00017917,2]
[365189618,1749525090969,-490.0,0.00017917,2]
[365189619,1749525090979,-490.0,0.00017917,2]
[365189620,1749525090988,-490.0,0.00017917,2]
[365189621,1749525090997,-673.4,0.00017917,2]
[365189622,1749525091007,-555.76896861,0.00017917,2]
[365189623,1749525091017,-490.0,0.00017917,2]
[365189624,1749525091027,-1580.0,0.00017917,2]
[365189625,1749525091036,-595.43,0.00017917,2]
[365189626,1749525091047,-3953.88,0.00017917,2]
[365189627,1749525091057,-605.59,0.00017917,2]
[365189628,1749525091067,-490.0,0.00017917,2]
[365189629,1749525091076,-490.0,0.00017917,2]
[365189630,1749525091086,-490.0,0.00017917,2]
[365189631,1749525091096,-490.0,0.00017917,2]
[365189632,1749525091106,-490.0,0.00017917,2]
[365189633,1749525091115,-490.0,0.00017917,2]
[365189634,1749525091124,-1687.14,0.00017917,2]
[365189635,1749525091135,-490.0,0.00017917,2]
[365189636,1749525091145,-334.94193543,0.00017917,2]
[365189637,1749525091155,-835.39,0.00017917,2]
[365189638,1749525091164,-490.0,0.00017917,2]
[365189639,1749525091174,-988.78,0.00017917,2]
[365189640,1749525091184,-509.02,0.00017917,2]
[365189641,1749525091194,-490.0,0.00017917,2]
[365189642,1749525091204,-490.0,0.00017917,2]
[365189643,1749525091377,-520.99,0.00017917,2]
[365189644,1749525091388,-490.0,0.00017917,2]
[365189645,1749525091398,-430.15700314,0.00017917,2]
[365189646,1749525091408,-490.0,0.00017917,2]
[365189647,1749525091419,-490.0,0.00017917,2]
[365189648,1749525091429,-490.0,0.00017917,2]
[365189649,1749525091440,-490.0,0.00017917,2]
[365189650,1749525091451,-490.0,0.00017917,2]
[365189651,1749525091460,-874.46,0.00017917,2]
[365189652,1749525091470,-490.0,0.00017917,2]
[365189653,1749525091481,-490.0,0.00017917,2]
[365189654,1749525091491,-1615.08,0.00017917,2]
[365189655,1749525091501,-490.0,0.00017917,2]
[365189656,1749525091511,-529.84,0.00017917,2]
[365189657,1749525091522,-1075.4,0.00017917,2]
[365189658,1749525091532,-490.0,0.00017917,2]
[365189659,1749525091542,-655.8,0.00017917,2]
[365189660,1749525091552,-553.14,0.00017917,2]
[365189661,1749525091563,-709.07,0.00017917,2]
[365189662,1749525091574,-1655.79,0.00017917,2]
[365189663,1749525091585,-490.0,0.00017917,2]
[365189664,1749525091597,-2379.12,0.00017917,2]
[365189665,1749525091608,-490.0,0.00017917,2]
[365189666,1749525091618,-235.78383166,0.00017917,2]
[365189667,1749525091629,-637.09,0.00017917,2]
[365189668,1749525091640,-1068.67,0.00017917,2]
[365189669,1749525091651,-490.0,0.00017917,2]
[365189670,1749525091662,-490.0,0.00017917,2]
[365189671,1749525091673,-927.29,0.00017917,2]
[365189672,1749525091683,-490.0,0.00017917,2]
[365189673,1749525091904,-739.16,0.00017917,2]
[365189674,1749525091914,-848.47,0.00017917,2]
[365189675,1749525091925,-490.0,0.00017917,2]
[365189676,1749525091935,-490.0,0.00017917,2]
[365189677,1749525091946,-1641.81,0.00017917,2]
[365189678,1749525091957,-2238.41,0.00017917,2]
[365189679,1749525091967,-449.25461962,0.00017917,2]
[365189680,1749525091976,-659.57,0.00017917,2]
[365189681,1749525091986,-490.0,0.00017917,2]
[365189682,1749525091995,-1065.02,0.00017917,2]
[365189683,1749525092006,-1338.38,0.00017917,2]
[365189684,1749525092015,-490.0,0.00017917,2]
[365189685,1749525092025,-490.0,0.00017917,2]
[365189686,1749525092034,-490.0,0.00017917,2]
[365189687,1749525092043,-490.0,0.00017917,2]
[365189688,1749525092052,-490.0,0.00017917,2]
[365189689,1749525092061,-897.68,0.00017917,2]
[365189690,1749525092070,-490.0,0.00017917,2]
[365189691,1749525092080,-490.0,0.00017917,2]
[365189692,1749525092089,-517.29,0.00017917,2]
[365189693,1749525092098,-439.47332147,0.00017917,2]
[365189694,1749525092108,-639.59,0.00017917,2]
[365189695,1749525092117,-490.0,0.00017917,2]
[365189696,1749525092127,-444.66039503,0.00017917,2]
[365189697,1749525092136,-490.0,0.00017917,2]
[365189698,1749525092146,-490.0,0.00017917,2]
[365189699,1749525092155,-482.94202292,0.00017917,2]
[365189700,1749525092165,-1634.79,0.00017917,2]
[365189701,1749525092174,-795.78,0.00017917,2]
[365189702,1749525092183,-490.0,0.00017917,2]
[365189703,1749525092193,-490.0,0.00017917,2]
[365189704,1749525092202,-499.37,0.00017917,2]
[365189705,1749525092212,-1983.09,0.00017917,2]
[365189706,1749525092222,-490.0,0.00017917,2]
[365189707,1749525092231,-490.0,0.00017917,2]
[365189708,1749525092240,-1184.87,0.00017917,2]
[365189709,1749525092250,-42056.12,0.00017917,2]
[365189710,1749525092259,-490.0,0.00017917,2]
[365189711,1749525092269,-490.0,0.00017917,2]
[365189712,1749525092279,-490.0,0.00017917,2]
[365189713,1749525092288,-490.0,0.00017917,2]
[365189714,1749525092298,-490.0,0.00017917,2]
[365189715,1749525092307,-203.12153087,0.00017917,2]
[365189716,1749525092317,-605.98,0.00017917,2]
[365189717,1749525092327,-491.03,0.00017917,2]
[365189718,1749525092336,-611.73,0.00017917,2]
[365189719,1749525092345,-497.21,0.00017917,2]
[365189720,1749525092355,-730.26,0.00017917,2]
[365189721,1749525092365,-1437.03,0.00017917,2]
[365189722,1749525092375,-490.0,0.00017917,2]
[365189723,1749525092384,-835.66,0.00017917,2]
[365189724,1749525092394,-1680.0,0.00017924,2]
[365189725,1749525092404,-600.0,0.00017937,4]
[365189726,1749525092413,-950.89,0.00017999,2]
[365189727,1749525092423,-664.92,0.00017999,2]
[365189728,1749525092432,-151.98,0.00018,14]
[365189729,1749525092442,-50489.96358789,0.00018,2]
[365189730,1749525092451,-1154.7711546,0.00018,2]
[365189731,1749525092461,-200.58754518,0.00018,4]
[365189732,1749525092470,-1078.0,0.00018004,2]
[365189733,1749525092480,-685.02,0.0001804,2]
[365189734,1749525092489,-1500.0,0.00018068,2]
[365189735,1749525092499,-1500.0,0.00018068,2]
[365189736,1749525092508,-1500.0,0.00018068,2]
[365189737,1749525092518,-490.0,0.00018082,2]
[365189738,1749525092528,-490.0,0.00018082,2]
[365189739,1749525092538,-490.0,0.00018082,2]
[365189740,1749525092548,-518.19944378,0.00018082,2]
[365189741,1749525092558,-490.0,0.00018082,2]
[365189742,1749525092566,-503.0,0.00018082,2]
[365189743,1749525092576,-706.89,0.00018082,2]
[365189744,1749525092587,-490.0,0.00018082,2]
[365189745,1749525092607,-665.87,0.00018082,2]
[365189746,1749525092629,-490.0,0.00018082,2]
[365189747,1749525092639,-504.72,0.00018082,2]
[365189748,1749525092648,-579.14,0.00018082,2]
[365189749,1749525092657,-490.0,0.00018082,2]
[365189750,1749525092667,-490.0,0.00018082,2]
[365189751,1749525092676,-490.0,0.00018082,2]
[365189752,1749525092686,-665.32,0.00018082,2]
[365189753,1749525092695,-490.0,0.00018082,2]
[365189754,1749525092705,-490.0,0.00018082,2]
[365189755,1749525092715,-490.0,0.00018082,2]
[365189756,1749525092724,-490.0,0.00018082,2]
[365189757,1749525092734,-490.0,0.00018082,2]
[365189758,1749525092752,-490.0,0.00018082,2]
[365189759,1749525092761,-644.96,0.00018082,2]
[365189760,1749525092771,-614.43,0.00018082,2]
[365189761,1749525092782,-490.0,0.00018082,2]
[365189762,1749525092791,-490.0,0.00018082,2]
[365189763,1749525092800,-862.63,0.00018082,2]
[365189764,1749525092810,-2092.76,0.00018082,2]
[365189765,1749525092819,-490.0,0.00018082,2]
[365189766,1749525092828,-377.35940165,0.00018082,2]
[365189767,1749525092838,-490.0,0.00018082,2]
[365189768,1749525092847,-490.0,0.00018082,2]
[365189769,1749525092858,-597.22,0.00018082,2]
[365189770,1749525092868,-460.21296875,0.00018082,2]
[365189771,1749525092877,-490.0,0.00018082,2]
[365189772,1749525092886,-496.63,0.00018082,2]
[365189773,1749525092896,-184.57,0.00018082,2]
[365189774,1749525092906,-490.0,0.00018082,2]
[365189775,1749525092915,-490.0,0.00018082,2]
[365189776,1749525092925,-490.0,0.00018082,2]
[365189777,1749525092935,-490.0,0.00018082,2]
[365189778,1749525092944,-490.0,0.00018082,2]
[365189779,1749525092953,-490.0,0.00018082,2]
[365189780,1749525092963,-490.0,0.00018082,2]
[365189781,1749525092972,-565.28,0.00018082,2]
[365189782,1749525092981,-490.0,0.00018082,2]
[365189783,1749525092991,-490.0,0.00018082,2]
[365189784,1749525093000,-490.0,0.00018082,2]
[365189785,1749525093011,-490.0,0.00018082,2]
[365189786,1749525093020,-537.96,0.00018082,2]
[365189787,1749525093030,-915.11,0.00018082,2]
[365189788,1749525093041,-490.0,0.00018082,2]
[365189789,1749525093051,-490.0,0.00018082,2]
[365189790,1749525093060,-490.0,0.00018082,2]
[365189791,1749525093071,-556.18,0.00018082,2]
[365189792,1749525093081,-490.0,0.00018082,2]
[365189793,1749525093091,-490.0,0.00018082,2]
[365189794,1749525093102,-490.0,0.00018082,2]
[365189795,1749525093114,-535.23,0.00018082,2]
[365189796,1749525093124,-490.0,0.00018082,2]
[365189797,1749525093134,-490.0,0.00018082,2]
[365189798,1749525093143,-2294.03,0.00018082,2]
[365189799,1749525093153,-722.61,0.00018082,2]
[365189800,1749525093163,-757.61,0.00018082,2]
[365189801,1749525093174,-616.56616908,0.00018082,2]
[365189802,1749525093185,-1761.99,0.00018082,2]
[365189803,1749525093195,-498.01,0.00018082,2]
[365189804,1749525093206,-490.0,0.00018082,2]
[365189805,1749525093216,-626.78,0.00018082,2]
[365189806,1749525093227,-2487.15,0.00018082,2]
[365189807,1749525093237,-490.0,0.00018082,2]
[365189808,1749525093247,-562.46975903,0.00018082,2]
[365189809,1749525093257,-996.35,0.00018082,2]
[365189810,1749525093267,-591.43,0.00018082,2]
[365189811,1749525093277,-490.0,0.00018082,2]
[365189812,1749525093287,-553.91,0.00018082,2]
[365189813,1749525093296,-188.32346267,0.00018082,2]
[365189814,1749525093306,-490.0,0.00018082,2]
[365189815,1749525093317,-490.0,0.00018082,2]
[365189816,1749525093328,-673.4,0.00018082,2]
[365189817,1749525093339,-490.0,0.00018082,2]
[365189818,1749525093349,-1580.0,0.00018082,2]
[365189819,1749525093359,-595.43,0.00018082,2]
[365189820,1749525093369,-3953.88,0.00018082,2]
[365189821,1749525093379,-605.59,0.00018082,2]
[365189822,1749525093390,-490.0,0.00018082,2]
[365189823,1749525093400,-490.0,0.00018082,2]
[365189824,1749525093412,-490.0,0.00018082,2]
[365189825,1749525093422,-490.0,0.00018082,2]
[365189826,1749525093432,-490.0,0.00018082,2]
[365189827,1749525093441,-490.0,0.00018082,2]
[365189828,1749525093450,-1687.14,0.00018082,2]
[365189829,1749525093461,-490.0,0.00018082,2]
[365189830,1749525093472,-835.39,0.00018082,2]
[365189831,1749525093482,-490.0,0.00018082,2]
[365189832,1749525093492,-988.78,0.00018082,2]
[365189833,1749525093503,-509.02,0.00018082,2]
[365189834,1749525093514,-490.0,0.00018082,2]
[365189835,1749525093524,-520.99,0.00018082,2]
[365189836,1749525093534,-490.0,0.00018082,2]
[365189837,1749525093544,-490.0,0.00018082,2]
[365189838,1749525093554,-490.0,0.00018082,2]
[365189839,1749525093565,-258.71128214,0.00018082,2]
[365189840,1749525093575,-490.0,0.00018082,2]
[365189841,1749525093586,-490.0,0.00018082,2]
[365189842,1749525093599,-490.0,0.00018082,2]
[365189843,1749525093609,-874.46,0.00018082,2]
[365189844,1749525093619,-490.0,0.00018082,2]
[365189845,1749525093628,-288.25587196,0.00018082,2]
[365189846,1749525093639,-1615.08,0.00018082,2]
[365189847,1749525093649,-490.0,0.00018082,2]
[365189848,1749525093659,-529.84,0.00018082,2]
[365189849,1749525093669,-1075.4,0.00018082,2]
[365189850,1749525093680,-207.52523668,0.00018082,2]
[365189851,1749525093690,-655.8,0.00018082,2]
[365189852,1749525093700,-553.14,0.00018082,2]
[365189853,1749525093710,-709.07,0.00018082,2]
[365189854,1749525093720,-1655.79,0.00018082,2]
[365189855,1749525093729,-490.0,0.00018082,2]
[365189856,1749525093739,-2379.12,0.00018082,2]
[365189857,1749525093750,-490.0,0.00018082,2]
[365189858,1749525093760,-637.09,0.00018082,2]
[365189859,1749525093769,-1068.67,0.00018082,2]
[365189860,1749525093779,-490.0,0.00018082,2]
[365189861,1749525093789,-490.0,0.00018082,2]
[365189862,1749525093798,-927.29,0.00018082,2]
[365189863,1749525093808,-739.16,0.00018082,2]
[365189864,1749525093818,-490.0,0.00018082,2]
[365189865,1749525093829,-848.47,0.00018082,2]
[365189866,1749525093839,-490.0,0.00018082,2]
[365189867,1749525093848,-490.0,0.00018082,2]
[365189868,1749525093857,-1641.81,0.00018082,2]
[365189869,1749525093867,-2238.41,0.00018082,2]
[365189870,1749525093876,-659.57,0.00018082,2]
[365189871,1749525093885,-164.69089231,0.00018082,2]
[365189872,1749525093895,-1065.02,0.00018082,2]
[365189873,1749525093905,-1338.38,0.00018082,2]
[365189874,1749525093915,-490.0,0.00018082,2]
[365189875,1749525093925,-490.0,0.00018082,2]
[365189876,1749525093935,-490.0,0.00018082,2]
[365189877,1749525093944,-490.0,0.00018082,2]
[365189878,1749525093954,-496.8398926,0.00018082,2]
[365189879,1749525093963,-897.68,0.00018082,2]
[365189880,1749525093972,-490.0,0.00018082,2]
[365189881,1749525093981,-490.0,0.00018082,2]
[365189882,1749525093991,-517.29,0.00018082,2]
[365189883,1749525094001,-639.59,0.00018082,2]
[365189884,1749525094012,-490.0,0.00018082,2]
[365189885,1749525094022,-490.0,0.00018082,2]
[365189886,1749525094032,-490.0,0.00018082,2]
[365189887,1749525094192,-1634.79,0.00018082,2]
[365189888,1749525094202,-795.78,0.00018082,2]
[365189889,1749525094212,-490.0,0.00018082,2]
[365189890,1749525094222,-490.0,0.00018082,2]
[365189891,1749525094232,-499.37,0.00018082,2]
[365189892,1749525094242,-1983.09,0.00018082,2]
[365189893,1749525094252,-490.0,0.00018082,2]
[365189894,1749525094263,-490.0,0.00018082,2]
[365189895,1749525094272,-1184.87,0.00018082,2]
[365189896,1749525094282,-42056.12,0.00018082,2]
[365189897,1749525094292,-490.0,0.00018082,2]
[365189898,1749525094303,-496.99556819,0.00018082,2]
[365189899,1749525094315,-490.0,0.00018082,2]
[365189900,1749525094326,-490.0,0.00018082,2]
[365189901,1749525094336,-490.0,0.00018082,2]
[365189902,1749525094346,-605.98,0.00018082,2]
[365189903,1749525094356,-491.03,0.00018082,2]
[365189904,1749525094366,-611.73,0.00018082,2]
[365189905,1749525094375,-497.21,0.00018082,2]
[365189906,1749525094386,-730.26,0.00018082,2]
[365189907,1749525094397,-1437.03,0.00018082,2]
[365189908,1749525094407,-490.0,0.00018082,2]
[365189909,1749525094416,-1516.99087426,0.000181,2]
[365189910,1749525094426,-159.72137022,0.00018119,2]
[365189911,1749525094436,-295.0,0.0001812,2]
[365189912,1749525094447,-561.53,0.00018136,2]
[365189913,1749525094457,-5554.04029648,0.00018174,2]
[365189914,1749525094467,-6976.82463692,0.00018175,2]
[365189915,1749525094478,-504.13570212,0.00018175,2]
[365189916,1749525094488,-1001.93521068,0.00018192,2]
[365189917,1749525094499,-1001.40239758,0.00018192,2]
[365189918,1749525094509,-267.63301061,0.00018192,2]
[365189919,1749525094519,-652.42765538,0.00018192,2]
[365189920,1749525094529,-1004.66118382,0.00018192,2]
[365189921,1749525094539,-704.27782473,0.00018192,2]
[365189922,1749525094548,-500.68254809,0.00018194,2]
[365189923,1749525094558,-2736.0853333,0.000182,2]
[365189924,1749525094568,-2736.08533312,0.000182,2]
[365189925,1749525094578,-2736.08533312,0.000182,2]
[365189926,1749525094589,-2736.08533312,0.000182,2]
[365189927,1749525094602,-2736.08533312,0.000182,2]
[365189928,1749525094612,-2736.08533312,0.000182,2]
[365189929,1749525094622,-2736.08533312,0.000182,2]
[365189930,1749525094632,-2736.08533312,0.000182,2]
[365189931,1749525094643,-2736.08533312,0.000182,2]
[365189932,1749525094653,-2736.08533312,0.000182,2]
[365189933,1749525094663,-2736.08533312,0.000182,2]
[365189934,1749525094674,-2736.08533312,0.000182,2]
[365189935,1749525094683,-2736.08533312,0.000182,2]
[365189936,1749525094693,-509.00853229,0.00018201,2]
[365189937,1749525094703,-379.0,0.00018216,5]
[365189938,1749525094712,-545.91235564,0.00018225,2]
[365189939,1749525094722,-2736.08533312,0.00018245,2]
[365189940,1749525094731,-730.31,0.00018245,2]
[365189941,1749525094741,-950.89,0.00018245,2]
[365189942,1749525094751,-664.92,0.00018245,2]
[365189943,1749525094761,-500.0,0.00018245,2]
[365189944,1749525094771,-490.0,0.00018246,2]
[365189945,1749525094781,-151.52484565,0.00018246,2]